bitfinex-derivatives/quotes_ETHF0:USTF0_20251028
["timestamp","ask_amount","ask_price","bid_price","bid_amount"]
[1761670166194,0.02374887,4137.8,4136.1,1.08802]
[1761670166389,0.02374887,4137.8,4136.4,1.08793]
[1761670166596,0.02374887,4137.8,4137.1,0.43509]
[1761670166790,0.02374887,4137.8,4136.2,3.1367486]
[1761670166995,0.02374887,4137.8,4136.1,1.08801]
[1761670167297,0.02374887,4137.8,4136.2,1.088]
[1761670167499,0.02374887,4137.8,4136.8,0.43512]
[1761670167996,0.02374887,4137.8,4136.0,4.571]
[1761670168198,0.02374887,4137.8,4136.8,0.43513]
[1761670169101,0.02374887,4137.8,4136.6,0.43515]
[1761670169395,0.02374887,4137.8,4136.0,4.571]
[1761670169396,0.09654887,4137.8,4136.4,0.43517]
[1761670169700,0.02374887,4137.8,4136.2,0.43519]
[1761670169897,0.02374887,4137.8,4136.0,5.00621]
[1761670170096,0.02374887,4137.8,4136.1,0.4352]
[1761670170800,0.02374887,4137.8,4136.0,0.43521]
[1761670171000,0.031,4137.7,4135.6,0.43525]
[1761670171300,0.02374887,4137.8,4135.4,0.0021163]
[1761670171301,0.02374887,4137.8,4135.7,0.43525]
[1761670171498,0.018,4137.7,4135.8,0.43524]
[1761670171700,0.018,4137.7,4135.6,0.43525]
[1761670171896,0.018,4137.7,4135.7,0.43525]
[1761670172398,0.018,4137.7,4135.5,0.43526]
[1761670172704,0.018,4137.7,4135.5,0.43527]
[1761670173596,0.018,4137.7,4135.4,0.0021163]
[1761670173597,0.018,4137.7,4135.6,0.43526]
[1761670173901,0.02374887,4137.8,4135.6,0.43526]
[1761670173902,0.032,4137.6,4135.6,0.43526]
[1761670174402,0.0728,4137.5,4135.4,0.0021163]
[1761670174701,0.622,4137.4,4135.6,0.43526]
[1761670174996,0.5,4137.3,4135.6,0.43526]
[1761670175200,0.5728,4137.3,4135.4,0.4373963]
[1761670175402,0.467,4137.2,4135.5,0.43527]
[1761670175700,0.5398,4137.2,4135.6,0.43526]
[1761670175897,0.467,4137.2,4135.6,0.43526]
[1761670176092,0.02374887,4137.8,4135.4,0.0021163]
[1761670176296,0.018,4137.7,4135.6,0.43526]
[1761670176699,0.02374887,4137.8,4135.4,0.0021163]
[1761670176901,0.018,4137.7,4135.7,0.43524]
[1761670177299,0.018,4137.7,4135.5,0.43526]
[1761670177494,0.018,4137.7,4135.4,0.0021163]
[1761670177897,0.0728,4137.6,4135.4,0.0021163]
[1761670178197,0.018,4137.7,4135.4,0.0021163]
[1761670178398,0.556,4137.6,4135.6,0.43526]
[1761670178596,0.556,4137.6,4135.5,0.43527]
[1761670178903,0.556,4137.6,4135.4,0.4373963]
[1761670179202,0.556,4137.6,4135.5,0.43527]
[1761670179404,0.556,4137.6,4135.4,0.0021163]
[1761670180195,0.556,4137.6,4135.4,0.4373963]
[1761670180999,0.556,4137.6,4135.4,0.0021163]
[1761670181204,0.556,4137.6,4135.5,0.43527]
[1761670181407,0.556,4137.6,4135.4,0.0021163]
[1761670181703,0.556,4137.6,4135.5,0.43526]
[1761670181899,0.556,4137.6,4135.4,0.0021163]
[1761670182102,0.556,4137.6,4135.6,0.43526]
[1761670182304,0.02374887,4137.8,4135.7,0.43524]
[1761670182508,0.688,4137.7,4135.8,0.43524]
[1761670182708,0.02374887,4137.8,4136.4,1.08793]
[1761670183007,0.02374887,4137.8,4136.0,13.05666]
[1761670183008,0.02374887,4137.8,4137.6,1.07383505]
[1761670183504,0.02374887,4137.8,4137.6,9.07383505]
[1761670184007,0.02374887,4137.8,4137.6,1.07383505]
[1761670184504,0.02374887,4137.8,4137.6,1.07384505]
[1761670185098,0.02374887,4137.8,4137.6,1.28962143]
[1761670186003,0.02374887,4137.8,4137.6,0.85457143]
[1761670186305,0.02374887,4137.8,4137.7,0.6379198]
[1761670186494,0.02374887,4137.8,4137.5,0.6379198]
[1761670187101,0.02374887,4137.8,4137.6,0.43505]
[1761670188002,0.02374887,4137.8,4137.6,1.0729698]
[1761670188205,0.02374887,4137.8,4137.6,1.28962143]
[1761670188511,0.02374887,4137.8,4137.6,1.28531471]
[1761670188709,0.02374887,4137.8,4137.5,0.85026471]
[1761670188905,0.02374887,4137.8,4137.5,1.07288355]
[1761670189209,0.02374887,4137.8,4137.3,0.63783355]
[1761670189805,0.02374887,4137.8,4137.0,0.63783355]
[1761670190510,0.02374887,4137.8,4136.9,0.63783355]
[1761670190907,0.02374887,4137.8,4136.9,1.07295355]
[1761670191210,0.02374887,4137.8,4137.0,0.63783355]
[1761670191709,0.02374887,4137.8,4137.0,0.4351]
[1761670192109,0.0728,4137.7,4136.9,0.63783355]
[1761670192303,0.0728,4137.7,4136.8,0.63783355]
[1761670192509,0.02374887,4137.8,4136.8,1.07296355]
[1761670192710,0.0728,4137.7,4136.8,1.07296355]
[1761670192912,0.02374887,4137.8,4137.0,0.63783355]
[1761670193111,0.02374887,4137.8,4137.0,1.07294355]
[1761670193613,0.02374887,4137.8,4137.0,0.63783355]
[1761670193807,0.02374887,4137.8,4136.9,0.63783355]
[1761670194317,0.02374887,4137.8,4136.9,1.07295355]
[1761670194613,0.02374887,4137.8,4137.0,0.43511]
[1761670195207,0.02374887,4137.8,4136.9,0.63783355]
[1761670195409,0.0728,4137.7,4136.9,0.63783355]
[1761670195819,0.0728,4137.7,4136.9,1.07295355]
[1761670196010,0.0728,4137.7,4137.0,0.43511]
[1761670196210,0.09654887,4137.8,4137.0,0.43511]
[1761670196410,0.09654887,4137.8,4136.9,1.07295355]
[1761670196611,0.09654887,4137.8,4136.9,0.63783355]
[1761670196813,0.02374887,4137.8,4136.9,0.63783355]
[1761670197120,0.0728,4137.7,4136.9,0.63783355]
[1761670197809,0.0728,4137.6,4136.5,0.63783355]
[1761670198008,0.0728,4137.7,4136.4,0.63783355]
[1761670198411,0.02374887,4137.8,4136.4,1.07300355]
[1761670198614,0.02374887,4137.8,4136.1,0.85026471]
[1761670198615,0.0728,4137.7,4136.3,0.63783355]
[1761670198815,0.6398,4137.7,4135.7,0.63783355]
[1761670199017,0.0728,4137.6,4135.8,0.43524]
[1761670199312,0.22843286,4137.8,4135.8,0.63783355]
[1761670199506,1.861,4137.7,4136.2,0.43519]
[1761670199710,1.861,4137.7,4136.0,1.07304355]
[1761670199909,1.861,4137.7,4136.1,0.4352]
[1761670200211,0.0728,4137.6,4136.0,0.63783355]
[1761670200518,0.85936375,4137.4,4135.4,0.0021163]
[1761670200818,0.85936375,4136.9,4135.4,0.0021163]
[1761670201022,0.85936375,4137.0,4135.4,0.0021163]
[1761670201219,4.08,4136.9,4135.4,0.0021163]
[1761670201414,4.572,4136.8,4135.4,0.0021163]
[1761670201719,4.572,4136.7,4135.4,0.0021163]
[1761670202115,0.0728,4136.6,4135.4,0.0021163]
[1761670202510,0.0728,4136.5,4135.4,0.0021163]
[1761670202711,4.571,4136.4,4135.4,0.0021163]
[1761670203019,4.573,4136.3,4135.4,0.0021163]
[1761670203222,0.85936375,4137.3,4135.4,0.0021163]
[1761670203410,1.71650299,4138.0,4135.4,0.64257643]
[1761670203411,0.85936375,4138.0,4135.4,0.64257643]
[1761670203615,1.405,4137.7,4135.4,0.64257643]
[1761670203918,1.405,4137.7,4136.0,0.43521]
[1761670204220,4.575,4137.6,4135.8,0.43523]
[1761670204915,4.575,4137.6,4135.5,0.43526]
[1761670205120,4.575,4137.6,4135.4,0.0021163]
[1761670205121,0.0728,4137.5,4135.4,0.0021163]
[1761670205521,1.9938,4137.4,4135.4,0.0021163]
[1761670205722,1.921,4137.4,4135.4,0.0021163]
[1761670205916,0.0728,4137.3,4135.4,0.0021163]
[1761670206114,1.921,4137.4,4135.4,0.0021163]
[1761670206320,0.0728,4137.3,4135.4,0.0021163]
[1761670206818,0.0728,4137.2,4135.4,0.0021163]
[1761670207013,0.0728,4137.3,4135.4,0.0021163]
[1761670207224,2.71,4137.2,4135.4,0.0021163]
[1761670207522,0.22843286,4137.8,4136.1,0.4352]
[1761670207715,0.22843286,4137.8,4136.1,0.43521]
[1761670207916,0.22843286,4137.8,4135.5,1.08818]
[1761670207917,1.576,4137.7,4135.9,0.43522]
[1761670208116,1.576,4137.7,4135.8,0.43524]
[1761670208317,1.576,4137.7,4135.6,0.43525]
[1761670208621,3.095,4137.6,4135.4,0.4373863]
[1761670209119,3.095,4137.6,4135.4,0.0021163]
[1761670209522,0.0728,4137.5,4135.4,0.0021163]
[1761670209720,0.85936375,4137.2,4135.4,0.0021163]
[1761670209919,0.85936375,4137.0,4135.4,0.0021163]
[1761670210120,1.2874078,4137.3,4135.4,0.0021163]
[1761670210121,0.85936375,4137.1,4135.4,0.0021163]
[1761670210522,0.85936375,4137.1,4134.1,0.63971336]
[1761670210523,0.85936375,4136.8,4134.1,0.63971336]
[1761670210715,0.85936375,4136.3,4133.7,0.43545]
[1761670210919,2.61316375,4136.2,4133.5,0.63971336]
[1761670211121,1.681,4136.2,4133.4,0.63971336]
[1761670211330,2.6068,4136.1,4133.4,0.63971336]
[1761670211520,0.0728,4136.2,4133.8,0.43544]
[1761670211719,1.737,4136.1,4133.8,0.43544]
[1761670211925,1.8098,4136.1,4133.9,0.43544]
[1761670212122,0.85936375,4136.5,4134.6,1.0884]
[1761670212323,5.5746564,4139.4,4136.1,0.4352]
[1761670212324,0.85936375,4137.6,4136.1,0.4352]
[1761670212629,0.22570155,4137.8,4135.8,0.63971336]
[1761670212832,0.02374887,4137.8,4136.2,0.43519]
[1761670213017,0.02374887,4137.8,4136.3,0.43518]
[1761670213421,1.974,4137.7,4136.6,0.43515]
[1761670213626,0.02374887,4137.8,4136.3,0.00252571]
[1761670213830,0.02374887,4137.8,4136.8,0.43513]
[1761670214128,0.02374887,4137.8,4136.9,0.43511]
[1761670214328,0.02374887,4137.8,4136.4,0.63971336]
[1761670214626,0.02374887,4137.8,4136.3,0.00252571]
[1761670214830,0.02374887,4137.8,4136.4,0.43517]
[1761670216125,0.02374887,4137.8,4136.3,0.00252571]
[1761670216432,0.192,4137.7,4136.3,0.00252571]
[1761670216831,0.02374887,4137.8,4136.3,0.43770571]
[1761670217132,0.276,4137.7,4136.3,0.43770571]
[1761670219733,0.02374887,4137.8,4136.6,0.43515]
[1761670220229,0.02374887,4137.8,4136.8,0.43513]
[1761670220734,0.02374887,4137.8,4136.3,0.64223907]
[1761670220735,0.02374887,4137.8,4137.1,0.43509]
[1761670220935,0.02374887,4137.8,4136.9,0.43511]
[1761670221133,0.02374887,4137.8,4136.7,0.43514]
[1761670221435,0.02374887,4137.8,4136.3,0.85279042]
[1761670221436,0.02374887,4137.8,4136.5,0.63971336]
[1761670221631,0.02374887,4137.8,4136.8,0.43513]
[1761670222438,0.02374887,4137.8,4136.6,0.43515]
[1761670222632,0.02374887,4137.8,4136.3,0.00252571]
[1761670222830,0.02374887,4137.8,4136.6,1.08789]
[1761670223230,0.02374887,4137.8,4137.1,0.43509]
[1761670223631,0.02374887,4137.8,4136.9,0.43512]
[1761670223834,0.02374887,4137.8,4136.4,0.63971336]
[1761670224032,0.02374887,4137.8,4137.0,0.43511]
[1761670224837,0.02374887,4137.8,4136.3,0.64223907]
[1761670224838,0.02374887,4137.8,4136.5,0.43516]
[1761670225035,0.02374887,4137.8,4136.3,0.00252571]
[1761670225333,0.02374887,4137.8,4136.9,0.43512]
[1761670225936,0.02374887,4137.8,4136.3,0.64223907]
[1761670226131,0.02374887,4137.8,4136.9,0.43512]
[1761670226332,0.02374887,4137.8,4136.3,0.64223907]
[1761670226333,0.02374887,4137.8,4136.7,0.43513]
[1761670226531,0.02374887,4137.8,4136.5,0.43516]
[1761670226740,0.02374887,4137.8,4136.7,0.43514]
[1761670226931,0.02374887,4137.8,4136.3,0.64223907]
[1761670227440,0.02374887,4137.8,4136.5,0.43516]
[1761670227639,0.02374887,4137.8,4136.3,0.64223907]
[1761670227640,0.02374887,4137.8,4136.3,0.00252571]
[1761670228335,0.02374887,4137.8,4136.4,0.43517]
[1761670228734,0.02374887,4137.8,4136.3,0.00252571]
[1761670230245,0.02374887,4137.8,4136.3,0.43770571]
[1761670230727,0.02374887,4137.8,4136.3,0.00252571]
[1761670231037,0.02374887,4137.8,4136.3,0.43770571]
[1761670231435,0.02374887,4137.8,4136.4,0.43517]
[1761670232137,0.02374887,4137.8,4136.3,0.64223907]
[1761670232340,0.02374887,4137.8,4136.3,1.07741907]
[1761670233543,0.02374887,4137.8,4136.3,0.64223907]
[1761670233740,0.02374887,4137.8,4136.3,0.00252571]
[1761670234542,1.902,4137.7,4136.3,0.00252571]
[1761670236943,0.02374887,4137.8,4136.3,0.00252571]
[1761670237139,0.02374887,4137.8,4137.7,0.43504]
[1761670237741,0.02374887,4137.8,4137.7,2.14009243]
[1761670237940,0.02374887,4137.8,4137.7,0.50784]
[1761670238143,8.87e-06,4137.8,4137.7,0.70834568]
[1761670238446,1.2874078,4141.2,4137.7,0.70834568]
[1761670238447,0.85936375,4141.7,4138.0,10.87507]
[1761670238640,3.607,4141.6,4139.8,0.63845369]
[1761670239037,10.8651,4141.9,4139.9,0.4348]
[1761670239240,0.43474,4140.5,4139.6,1.07328369]
[1761670239439,0.43474,4140.5,4139.8,0.00282745]
[1761670239741,0.43478,4140.2,4139.8,0.00282745]
[1761670240040,0.4348,4140.0,4139.8,0.00282745]
[1761670240241,0.03062291,4139.9,4139.8,0.00282745]
[1761670240837,0.03062291,4139.9,4138.8,0.63845369]
[1761670241139,0.43494,4138.7,4138.5,5.26545369]
[1761670241350,0.03062291,4138.6,4138.5,5.26545369]
[1761670241648,0.03062291,4138.6,4138.1,0.435]
[1761670241848,0.03306392,4138.6,4138.1,0.00285435]
[1761670242248,0.03306392,4138.6,4138.1,0.43784435]
[1761670242543,0.00244101,4138.6,4138.4,0.40433709]
[1761670243051,0.85936375,4140.9,4138.3,0.0728]
[1761670243242,2.95758706,4142.6,4138.8,0.43491]
[1761670243243,1.719,4141.0,4138.8,0.43491]
[1761670243443,1.719,4141.0,4138.3,0.63845369]
[1761670243643,2.131,4140.9,4138.9,0.4349]
[1761670243942,2.131,4140.9,4138.7,0.43493]
[1761670244141,2.131,4140.9,4138.3,0.43497]
[1761670244142,2.13316498,4140.9,4138.3,0.43497]
[1761670244346,0.85936375,4140.6,4138.1,0.00285435]
[1761670244646,0.85936375,4140.6,4138.2,0.43498]
[1761670245046,0.85936375,4140.6,4138.3,0.43497]
[1761670245247,0.85936375,4140.6,4138.1,0.00285435]
[1761670245442,3.436,4140.5,4138.3,0.43497]
[1761670246144,4.479,4140.6,4138.1,0.00285435]
[1761670246347,0.85936375,4140.7,4138.1,0.00285435]
[1761670246540,4.624,4140.6,4138.8,0.43492]
[1761670246852,4.629,4140.5,4138.6,0.43494]
[1761670248051,4.629,4140.5,4138.7,0.43493]
[1761670248246,4.629,4140.5,4138.3,0.43497]
[1761670248546,4.629,4140.5,4138.4,0.43496]
[1761670248750,0.85936375,4140.4,4138.1,0.00285435]
[1761670248945,0.93216375,4140.4,4138.1,0.00285435]
[1761670249154,0.85936375,4140.3,4138.1,0.00285435]
[1761670249644,0.85936375,4140.2,4138.1,0.00285435]
[1761670250350,1.799,4140.1,4138.1,0.00285435]
[1761670250547,4.624,4140.0,4138.1,0.00285435]
[1761670251154,4.623,4139.9,4138.1,0.00285435]
[1761670251452,0.649,4139.8,4137.2,0.63845369]
[1761670251651,0.85936375,4139.2,4136.2,0.63845369]
[1761670251847,0.85936375,4139.1,4136.1,0.63845369]
[1761670252152,0.85936375,4139.1,4136.3,0.43518]
[1761670252652,0.85936375,4139.1,4136.3,0.43705585]
[1761670252948,0.85936375,4139.1,4136.4,0.43517]
[1761670253156,0.85936375,4139.0,4136.4,0.43517]
[1761670253655,0.85936375,4139.6,4137.1,0.4351]
[1761670253852,0.85936375,4139.8,4136.8,0.63845369]
[1761670254054,0.688,4139.7,4137.2,0.43509]
[1761670254353,0.688,4139.7,4136.8,0.63845369]
[1761670254650,1.54736375,4139.7,4136.6,1.07360369]
[1761670254948,0.85936375,4139.5,4136.6,0.43515]
[1761670255453,0.85936375,4139.5,4136.5,0.63845369]
[1761670255654,1.9754078,4139.7,4136.4,0.63845369]
[1761670255655,0.85936375,4139.4,4136.4,0.63845369]
[1761670255948,0.85936375,4139.2,4136.3,0.00187585]
[1761670256147,0.85936375,4139.0,4136.3,0.00187585]
[1761670256348,0.85936375,4139.0,4136.3,0.43705585]
[1761670256551,1.718,4138.9,4136.3,0.43705585]
[1761670256743,4.62,4138.8,4136.6,0.43515]
[1761670257353,0.85936375,4139.3,4136.6,0.43515]
[1761670257548,0.85936375,4139.3,4136.9,0.43511]
[1761670257750,0.85936375,4139.4,4136.9,0.43511]
[1761670257948,0.85936375,4139.4,4137.0,0.43511]
[1761670258149,1.716,4139.3,4137.1,0.4351]
[1761670258449,4.618,4139.2,4137.0,0.43511]
[1761670258850,4.618,4139.1,4137.0,0.43511]
[1761670259052,0.85936375,4139.5,4137.0,0.43511]
[1761670259245,0.85936375,4139.5,4137.1,0.4351]
[1761670259444,1.714,4139.4,4137.1,0.4351]
[1761670259647,4.616,4139.3,4137.0,0.43511]
[1761670259842,0.85936375,4139.7,4136.8,1.08784]
[1761670260049,4.427,4139.6,4137.3,0.43507]
[1761670260243,1.714,4139.5,4137.2,0.43508]
[1761670260648,0.85936375,4139.8,4137.4,0.43506]
[1761670260856,0.85936375,4139.9,4137.1,0.4351]
[1761670261149,1.712,4139.8,4136.9,0.63845369]
[1761670261353,1.712,4139.8,4136.7,1.28640159]
[1761670261354,0.85936375,4139.6,4137.0,0.43511]
[1761670261649,0.85936375,4139.7,4136.8,0.63845369]
[1761670261845,2.42,4139.6,4136.8,0.63845369]
[1761670262051,3.27936375,4139.6,4136.7,0.63845369]
[1761670262250,0.85936375,4139.8,4136.9,0.63845369]
[1761670262446,2.672,4139.7,4137.1,0.4351]
[1761670262854,0.85936375,4139.8,4137.0,0.43511]
[1761670263151,0.85936375,4139.8,4136.9,0.63845369]
[1761670263352,0.85936375,4140.2,4137.7,0.43504]
[1761670263550,0.85936375,4140.2,4137.5,1.08765]
[1761670263747,0.85936375,4140.4,4137.7,1.0876]
[1761670263953,1.713,4140.3,4138.1,0.43499]
[1761670264156,1.713,4140.3,4137.8,0.63845369]
[1761670264354,1.713,4140.3,4137.9,0.63845369]
[1761670264657,1.713,4140.3,4137.8,0.43503]
[1761670265152,2.42,4140.6,4137.9,0.63845369]
[1761670265153,0.85936375,4140.6,4137.9,0.63845369]
[1761670265358,1.714,4140.5,4138.6,0.43494]
[1761670265553,0.86152873,4140.9,4138.2,0.63845369]
[1761670265554,3.083,4140.4,4138.7,0.43492]
[1761670265852,0.00216498,4140.9,4138.9,0.43491]
[1761670266059,3.327,4140.8,4138.5,0.63845369]
[1761670266254,0.00216498,4140.9,4139.0,0.4349]
[1761670266448,0.00216498,4140.9,4138.6,0.63845369]
[1761670266651,1.747,4140.8,4138.8,0.63845369]
[1761670266956,1.747,4140.8,4138.9,0.43491]
[1761670267150,1.747,4140.8,4139.1,0.43489]
[1761670267455,0.00216498,4140.9,4139.3,0.43487]
[1761670267758,2.174,4140.7,4139.3,0.00278419]
[1761670267957,2.174,4140.7,4139.3,0.43764419]
[1761670268554,2.40516498,4140.9,4139.3,0.43764419]
[1761670268760,2.86616498,4140.9,4139.4,0.43486]
[1761670269261,0.00216498,4140.9,4139.5,0.43484]
[1761670269857,0.00216498,4140.9,4139.4,0.43486]
[1761670270459,0.00216498,4140.9,4139.5,0.43485]
[1761670270953,0.00216498,4140.9,4139.3,1.07610788]
[1761670271455,0.00216498,4140.9,4139.3,0.43765419]
[1761670271663,0.00216498,4140.9,4139.6,0.43484]
[1761670271849,0.00216498,4140.9,4139.3,0.00278419]
[1761670271850,0.00216498,4140.9,4139.4,1.15994]
[1761670272058,0.00216498,4140.9,4139.7,0.63845369]
[1761670272256,0.00216498,4140.9,4140.3,0.43476]
[1761670272459,0.00216498,4140.9,4139.8,0.63845369]
[1761670272953,0.00216498,4140.9,4140.3,0.43476]
[1761670273564,0.00216498,4140.9,4140.4,0.43475]
[1761670273757,0.00216498,4140.9,4140.2,0.43477]
[1761670273957,0.00216498,4140.9,4139.8,0.63845369]
[1761670274360,0.00216498,4140.9,4140.2,0.43477]
[1761670274862,0.00216498,4140.9,4139.6,0.63845369]
[1761670275063,0.00216498,4140.9,4139.5,1.07329369]
[1761670275363,0.00216498,4140.9,4139.6,0.43484]
[1761670275566,0.00216498,4140.9,4139.5,0.43485]
[1761670275763,0.00216498,4140.9,4139.3,0.43765419]
[1761670276062,0.00216498,4140.9,4139.3,0.00278419]
[1761670276367,0.00216498,4140.9,4139.6,0.43484]
[1761670276665,0.00216498,4140.9,4139.3,0.00278419]
[1761670276666,0.00216498,4140.9,4139.9,0.4348]
[1761670277066,0.00216498,4140.9,4139.7,0.43482]
[1761670277272,0.00216498,4140.9,4139.8,0.43481]
[1761670277666,0.00216498,4140.9,4139.3,0.00278419]
[1761670278068,0.00216498,4140.9,4139.4,0.43486]
[1761670278268,0.00216498,4140.9,4139.5,0.43484]
[1761670278568,0.00216498,4140.9,4139.5,0.43485]
[1761670278768,0.00216498,4140.9,4139.3,0.43765419]
[1761670279070,0.00216498,4140.9,4139.3,0.00278419]
[1761670279571,0.00216498,4140.9,4139.3,0.43765419]
[1761670279869,0.00216498,4140.9,4139.4,0.43486]
[1761670280063,0.00216498,4140.9,4139.5,0.43484]
[1761670280269,0.00216498,4140.9,4139.6,0.43484]
[1761670280471,0.00216498,4140.9,4139.5,0.43484]
[1761670280872,0.00216498,4140.9,4139.4,0.43486]
[1761670281175,0.00216498,4140.9,4139.3,0.00278419]
[1761670281676,0.00216498,4140.9,4139.5,0.43485]
[1761670282177,0.00216498,4140.9,4139.3,0.43764419]
[1761670282975,0.00216498,4140.9,4139.3,0.00278419]
[1761670283373,0.00216498,4140.9,4139.4,0.43486]
[1761670283775,0.0728,4140.8,4139.3,0.00278419]
[1761670283970,0.93216375,4140.8,4139.3,0.00278419]
[1761670284271,2.793,4140.7,4139.3,0.00278419]
[1761670284674,0.00216498,4140.9,4139.3,0.00278419]
[1761670285068,2.502,4140.8,4139.3,0.00278419]
[1761670285272,0.00216498,4140.9,4139.3,0.00278419]
[1761670285468,0.00216498,4140.9,4139.5,0.43485]
[1761670285774,0.00216498,4140.9,4139.6,0.43483]
[1761670285974,0.00216498,4140.9,4139.7,0.43482]
[1761670286167,0.00216498,4140.9,4139.7,0.43483]
[1761670286473,0.00216498,4140.9,4139.8,0.43482]
[1761670286773,0.00216498,4140.9,4139.7,0.43483]
[1761670286977,0.00216498,4140.9,4139.9,0.43481]
[1761670287370,0.00216498,4140.9,4139.7,0.43482]
[1761670287877,0.00216498,4140.9,4139.9,0.43481]
[1761670288071,0.00216498,4140.9,4139.4,1.08714]
[1761670288469,0.00216498,4140.9,4140.0,0.43479]
[1761670288665,0.00216498,4140.9,4140.3,0.43476]
[1761670288976,0.85936375,4142.5,4140.5,0.43474]
[1761670289172,1.0864,4142.3,4140.1,0.63845369]
[1761670289373,0.43475,4140.5,4139.8,0.63845369]
[1761670289568,0.43473,4140.7,4139.9,0.4348]
[1761670289768,0.43474,4140.6,4139.9,0.4348]
[1761670289973,0.43475,4140.5,4139.9,0.4348]
[1761670290470,0.43476,4140.4,4139.9,0.4348]
[1761670290671,0.43477,4140.3,4139.9,0.4348]
[1761670291179,0.43478,4140.2,4139.9,0.4348]
[1761670291869,0.43478,4140.2,4140.0,0.43479]
[1761670292774,0.00279419,4140.6,4139.8,0.63845369]
[1761670293077,1.08687,4140.5,4139.8,0.63845369]
[1761670293276,0.43476,4140.4,4139.9,0.63845369]
[1761670293471,0.00279419,4140.6,4140.1,0.63845369]
[1761670293670,0.43476,4140.4,4140.2,0.43477]
[1761670293875,0.43753419,4140.6,4140.2,0.43477]
[1761670294173,0.00279419,4140.6,4139.9,0.63845369]
[1761670294374,0.4348,4140.0,4139.8,0.63845369]
[1761670294781,0.4348,4140.0,4139.8,1.07327369]
[1761670295084,0.43478,4140.2,4140.0,0.43479]
[1761670295382,0.43477,4140.3,4140.1,1.07467138]
[1761670296586,0.43477,4140.3,4140.1,0.63989138]
[1761670296785,0.43477,4140.3,4140.1,1.07467138]
[1761670297085,0.00279419,4140.6,4140.3,0.43476]
[1761670297782,0.00279419,4140.6,4140.4,0.43475]
[1761670299085,0.00279419,4140.6,4140.2,0.43477]
[1761670299284,0.00279419,4140.6,4140.1,0.63989138]
[1761670299484,0.00279419,4140.6,4140.4,0.43475]
[1761670301276,0.00279419,4140.6,4140.4,1.07464138]
[1761670301483,0.00279419,4140.6,4140.5,7.2608]
[1761670301689,0.00279419,4140.6,4140.5,8.46490738]
[1761670301889,0.00279419,4140.6,4140.5,16.46490738]
[1761670302899,0.00279419,4140.6,4140.5,8.53770738]
[1761670303095,0.00279419,4140.6,4140.5,7.188]
[1761670303495,0.00279419,4140.6,4140.5,15.188]
[1761670303691,0.00279419,4140.6,4140.5,16.46729944]
[1761670303889,0.00279419,4140.6,4140.5,2.625]
[1761670306794,0.00279419,4140.6,4140.5,2.6978]
[1761670307098,0.00279419,4140.6,4140.5,3.90429944]
[1761670307301,0.00279419,4140.6,4140.5,2.625]
[1761670308392,0.00279419,4140.6,4140.5,3.47733167]
[1761670308695,0.00279419,4140.6,4140.5,2.625]
[1761670308995,0.00279419,4140.6,4140.5,3.05974]
[1761670309599,0.00279419,4140.6,4140.5,4.33903944]
[1761670309799,4.19e-06,4140.6,4140.5,3.78254]
[1761670310004,0.85936375,4142.6,4140.1,1.05972507]
[1761670310294,2.42,4141.6,4138.8,1.27824726]
[1761670310490,0.85936375,4140.7,4138.7,0.873]
[1761670310692,0.649,4140.6,4138.7,1.031]
[1761670310891,0.86607649,4139.5,4139.3,0.43486]
[1761670311199,4.21003652,4142.5,4138.8,0.61057536]
[1761670311200,1.33002534,4139.4,4138.8,14.92992]
[1761670311390,0.68102534,4139.3,4138.9,0.61274419]
[1761670311598,0.68102534,4139.2,4139.1,0.43488]
[1761670311793,0.68102534,4139.2,4139.0,5.07489]
[1761670312102,0.86607649,4139.3,4139.1,6.00175536]
[1761670312294,0.68220451,4139.2,4139.1,1.04545536]
[1761670312495,0.68220451,4139.2,4139.1,3.37288]
[1761670312695,0.68220451,4139.2,4139.1,0.50768]
[1761670312897,0.68220451,4139.2,4139.1,1.11825536]
[1761670313203,0.68220451,4139.2,4139.1,5.75825536]
[1761670313401,0.68220451,4139.2,4139.1,5.83105536]
[1761670313603,0.68220451,4139.2,4139.1,5.75825536]
[1761670314002,0.68220451,4139.2,4139.1,1.11825536]
[1761670314203,0.68220451,4139.2,4139.1,5.75825536]
[1761670315496,0.68220451,4139.2,4139.1,1.11825536]
[1761670315698,0.68220451,4139.2,4139.1,0.68337536]
[1761670315897,0.68220451,4139.2,4139.1,5.31837536]
[1761670316698,0.68220451,4139.2,4139.1,0.68337536]
[1761670316899,0.68220451,4139.2,4139.1,5.31637536]
[1761670317103,0.68220451,4139.2,4139.1,0.68337536]
[1761670317299,0.68220451,4139.2,4139.1,4.7048]
[1761670318110,0.68220451,4139.2,4139.1,0.0728]
[1761670318410,0.68220451,4139.2,4139.1,4.7028]
[1761670318607,0.68220451,4139.2,4139.1,0.0728]
[1761670318908,0.68220451,4139.2,4139.1,4.7008]
[1761670319108,0.68220451,4139.2,4139.1,0.0728]
[1761670319606,0.68220451,4139.2,4139.1,4.6998]
[1761670320107,0.68220451,4139.2,4139.1,4.627]
[1761670320312,1.54796457,4139.2,4139.1,5.31037536]
[1761670320499,0.86576006,4139.8,4139.7,0.43483]
[1761670320706,0.86576006,4140.3,4140.1,0.43479]
[1761670320905,0.86576006,4140.3,4140.2,4.625]
[1761670321106,0.96576006,4140.3,4140.2,0.2415]
[1761670321314,1.3874078,4140.3,4139.5,0.43484]
[1761670321510,1.2874078,4140.1,4140.0,0.2415]
[1761670321802,0.1,4140.1,4140.0,0.2415]
[1761670322209,0.1,4140.1,4139.0,1.08726]
[1761670322408,0.1,4140.2,4140.0,0.43479]
[1761670322714,0.1,4140.2,4140.1,4.624]
[1761670322907,0.1,4140.2,4140.1,4.8655]
[1761670323105,0.1,4140.2,4140.0,0.43479]
[1761670323415,0.1,4140.2,4140.1,4.8695]
[1761670323805,0.1,4140.2,4138.7,1.08733]
[1761670324113,0.1,4140.2,4138.0,6.9256556]
[1761670324114,0.1,4140.2,4139.1,0.43489]
[1761670324309,0.96563902,4140.2,4139.2,4.627]
[1761670324614,0.1,4140.2,4139.7,0.43482]
[1761670324816,0.1,4140.2,4139.9,0.2415]
[1761670325009,0.1,4140.2,4140.1,0.2415]
[1761670325508,0.1,4140.2,4140.0,0.43479]
[1761670325703,0.1,4140.2,4140.1,0.2415]